[Event "EYCC Girls-U18 2019"]
[Site "Bratislava"]
[Date "2019.08.09"]
[Round "8.24"]
[White "Manova, Ivana"]
[Black "Moscicka, Pola"]
[Result "0-1"]
[ECO "B23"]
[WhiteElo "1845"]
[BlackElo "1870"]
[Annotator "NA"]
[PlyCount "69"]
[EventDate "2019.08.02"]
[EventType "swiss"]
[EventCountry "SVK"]
[SourceTitle "playchess.com"]
[Source "ChessBase"]
[SourceQuality "1"]
[TimeControl "40/5400+30:1800+30"]

1. e4 {[%emt 0:00:00]} c5 {[%emt 0:00:00]} 2. Nc3 {[%emt 0:00:00]} Nc6 {[%emt 0:00:00]} 3. f4 {[%emt 0:00:04]} e6 {[%emt 0:02:41]} 4. Nf3 {[%emt 0:00:43]} d5 {[%emt 0:01:09]} 5. d3 {[%emt 0:01:56]} d4 {[%emt 0:00:47]} 6. Ne2 {[%emt 0:04:48]} Nf6 {[%emt 0:01:33]} 7. g3 {[%emt 0:01:29]} Be7 {[%emt 0:03:59]} 8. Bg2 {[%emt 0:01:59]} O-O {[%emt 0:01:51]} 9. O-O {[%emt 0:01:18]} Rb8 {[%emt 0:02:53]} 10. h3 {[%emt 0:07:09]} b5 {[%emt 0:13:05]} 11. g4 {[%emt 0:05:47]} Bb7 {[%emt 0:09:00]} 12. Ng3 {[%emt 0:07:29]} Qc7 {[%emt 0:04:00]} 13. g5 {[%emt 0:10:19]} Nd7 {[%emt 0:00:59]} 14. Nh2 {[%emt 0:09:15]} Bd6 {[%emt 0:13:43]} 15. Nh5 {[%emt 0:12:20]} c4 {[%emt 0:03:13]} 16. Qg4 {[%emt 0:14:58]} Kh8 {[%emt 0:01:03]} 17. Qh4 {[%emt 0:03:36]} cxd3 {[%emt 0:03:13]} 18. cxd3 {[%emt 0:01:06]} Nb4 {[%emt 0:00:16]} 19. Ng4 {[%emt 0:13:50]} Nxd3 {[%emt 0:03:12]} 20. Bd2 {[%emt 0:01:17]} Qc2 {[%emt 0:01:06]} 21. Ba5 {[%emt 0:00:34]} b4 {[%emt 0:02:27]} 22. Rad1 {[%emt 0:00:30]} Rbc8 {[%emt 0:01:57]} 23. a3 {[%emt 0:00:27]} bxa3 {[%emt 0:05:20]} 24. bxa3 {[%emt 0:00:08]} Qa4 {[%emt 0:02:13]} 25. Bd2 {[%emt 0:00:50]} Rc2 {[%emt 0:01:12]} 26. f5 {[%emt 0:00:26]} exf5 {[%emt 0:01:35]} 27. Rxf5 {[%emt 0:00:11]} Rc5 {[%emt 0:01:07]} 28. Nxg7 {[%emt 0:00:54]} Rxf5 {[%emt 0:01:13]} 29. Nxf5 {[%emt 0:00:25]} Qxd1+ {[%emt 0:00:26]} 30. Bf1 {[%emt 0:00:28]} N7e5 {[%emt 0:07:13]} 31. Qh6 {[%emt 0:00:34]} Nf3+ {[%emt 0:00:30]} 32. Kg2 {[%emt 0:00:14]} Qxd2+ {[%emt 0:00:41]} 33. Kh1 {[%emt 0:00:35]} Qxg5 {[%emt 0:02:00]} 34. Qxd6 {[%emt 0:00:47]} Rd8 {[%emt 0:00:23]} 35. Qc7 0-1